fUSD/lending_fUSD_20260617
["ID","MTS","AMOUNT","RATE_DAILY","PERIOD"]
[425346441,1781706347000,265.5,0.0003013,120]
[425346442,1781706426000,500.0,0.00014699,2]
[425346443,1781706433000,-547.82042914,0.00014799,2]
[425346444,1781706435000,-583.10667086,0.00014799,2]
[425346445,1781706435000,-160.0,0.00014804,2]
[425346446,1781706435000,-216.17170803,0.00014804,2]
[425346449,1781706435000,-500.0,0.00014849,2]
[425346448,1781706435000,-443.16173635,0.00014849,2]
[425346450,1781706435000,-150.0,0.00014946,2]
[425346451,1781706435000,-93.61558784,0.00014998,2]
[425346447,1781706435000,-199.5,0.00014849,2]
[425346453,1781706453000,500.0,0.00030129,120]
[425346452,1781706453000,500.0,0.00029665,120]
[425346454,1781706515000,505.03492556,0.00028899,120]
[425346455,1781706529000,500.0,0.00028979,120]
[425346456,1781706540000,500.0,0.00028899,120]
[425346457,1781706626000,1000.0,0.0003,120]
[425346459,1781706626000,500.0,0.00030129,120]
[425346458,1781706626000,500.0,0.00029665,120]
[425346478,1781706632000,-368.45964597,0.00014999,2]
[425346492,1781706632000,-500.0,0.00017894,2]
[425346486,1781706632000,-155.22864429,0.00017894,2]
[425346487,1781706632000,-500.0,0.00017894,2]
[425346490,1781706632000,-500.0,0.00017894,2]
[425346484,1781706632000,-250.0,0.00016279,2]
[425346480,1781706632000,-216.17170803,0.00015,2]
[425346483,1781706632000,-298.32373317,0.00016279,2]
[425346482,1781706632000,-267.0,0.00015244,2]
[425346493,1781706632000,-386.17250829,0.00017894,2]
[425346477,1781706632000,-131.54035403,0.00014999,2]
[425346481,1781706632000,-150.0,0.00015094,2]
[425346476,1781706632000,-500.0,0.00014999,2]
[425346475,1781706632000,-209.11580347,0.00014999,2]
[425346473,1781706632000,-259.85472851,0.00014999,2]
[425346474,1781706632000,-290.88419653,0.00014999,2]
[425346471,1781706632000,-150.0,0.00014849,2]
[425346470,1781706632000,-160.0,0.000148,2]
[425346472,1781706632000,-406.38102847,0.00014998,2]
[425346479,1781706632000,-500.0,0.00014999,2]
[425346491,1781706632000,-206.64577855,0.00017894,2]
[425346511,1781706632000,-500.0,0.00017895,2]
[425346489,1781706632000,-329.62223779,0.00017894,2]
[425346488,1781706632000,-500.0,0.00017894,2]
[425346507,1781706632000,-500.0,0.00017895,2]
[425346509,1781706632000,-500.0,0.00017895,2]
[425346510,1781706632000,-500.0,0.00017895,2]
[425346508,1781706632000,-500.0,0.00017895,2]
[425346512,1781706632000,-500.0,0.00017895,2]
[425346505,1781706632000,-500.0,0.00017895,2]
[425346506,1781706632000,-500.0,0.00017895,2]
[425346499,1781706632000,-500.0,0.00017895,2]
[425346500,1781706632000,-500.0,0.00017895,2]
[425346513,1781706632000,-500.0,0.00018066,2]
[425346504,1781706632000,-500.0,0.00017895,2]
[425346495,1781706632000,-527.02746602,0.00017895,2]
[425346502,1781706632000,-500.0,0.00017895,2]
[425346503,1781706632000,-500.0,0.00017895,2]
[425346498,1781706632000,-500.0,0.00017895,2]
[425346501,1781706632000,-500.0,0.00017895,2]
[425346496,1781706632000,-500.0,0.00017895,2]
[425346494,1781706632000,-500.0,0.00017895,2]
[425346485,1781706632000,-404.0,0.00016438,2]
[425346497,1781706632000,-500.0,0.00017895,2]
[425346560,1781706633000,-151.0,0.00021899,2]
[425346552,1781706633000,-304.78,0.00021896,2]
[425346550,1781706633000,-304.78,0.00021769,2]
[425346542,1781706633000,-409.0,0.00021368,2]
[425346545,1781706633000,-195.03052224,0.000215,2]
[425346543,1781706633000,-304.78,0.0002141,2]
[425346540,1781706633000,-195.03052224,0.000213,2]
[425346541,1781706633000,-304.78,0.00021328,2]
[425346544,1781706633000,-304.78,0.00021488,2]
[425346558,1781706633000,-151.0,0.00021899,2]
[425346546,1781706633000,-304.78,0.00021563,2]
[425346561,1781706633000,-151.0,0.00021899,2]
[425346566,1781706633000,-151.0,0.00021899,2]
[425346555,1781706633000,-151.0,0.00021899,2]
[425346557,1781706633000,-151.0,0.00021899,2]
[425346556,1781706633000,-151.0,0.00021899,2]
[425346551,1781706633000,-304.78,0.00021834,2]
[425346554,1781706633000,-151.0,0.00021899,2]
[425346563,1781706633000,-151.0,0.00021899,2]
[425346573,1781706633000,-1847.07,0.00022466,2]
[425346562,1781706633000,-151.0,0.00021899,2]
[425346565,1781706633000,-151.0,0.00021899,2]
[425346538,1781706633000,-151.0,0.0002125,2]
[425346564,1781706633000,-151.0,0.00021899,2]
[425346567,1781706633000,-195.03052224,0.000219,2]
[425346553,1781706633000,-151.0,0.00021899,2]
[425346548,1781706633000,-195.03052224,0.000217,2]
[425346531,1781706633000,-304.78,0.00021149,2]
[425346547,1781706633000,-304.78,0.00021634,2]
[425346516,1781706633000,-338.0,0.0002,2]
[425346514,1781706633000,-304.78,0.00019811,2]
[425346515,1781706633000,-336.0,0.0002,2]
[425346517,1781706633000,-155.0,0.0002,2]
[425346519,1781706633000,-200.0,0.0002,2]
[425346523,1781706633000,-304.78,0.00020822,2]
[425346521,1781706633000,-304.78,0.00020526,2]
[425346526,1781706633000,-338.0,0.00021,2]
[425346525,1781706633000,-336.0,0.00021,2]
[425346518,1781706633000,-197.359704,0.0002,2]
[425346524,1781706633000,-304.78,0.00020942,2]
[425346522,1781706633000,-304.78,0.00020687,2]
[425346520,1781706633000,-304.78,0.00020316,2]
[425346527,1781706633000,-155.0,0.00021,2]
[425346530,1781706633000,-304.78,0.00021049,2]
[425346529,1781706633000,-404.0,0.00021,2]
[425346568,1781706633000,-336.0,0.00022,2]
[425346528,1781706633000,-200.0,0.00021,2]
[425346533,1781706633000,-410.0,0.00021218,2]
[425346532,1781706633000,-152.0,0.00021211,2]
[425346534,1781706633000,-408.0,0.00021233,2]
[425346536,1781706633000,-304.78,0.00021241,2]
[425346537,1781706633000,-402.0,0.00021242,2]
[425346535,1781706633000,-318.0,0.00021233,2]
[425346539,1781706633000,-409.0,0.00021276,2]
[425346549,1781706633000,-304.78,0.00021703,2]
[425346569,1781706633000,-338.0,0.00022,2]
[425346559,1781706633000,-151.0,0.00021899,2]
[425346572,1781706633000,-291.0,0.00022,2]
[425346601,1781706633000,-200.0,0.00025736,2]
[425346604,1781706633000,-200.0,0.00026494,2]
[425346603,1781706633000,-151.0,0.00026296,2]
[425346605,1781706633000,-6825.2011,0.00026634,2]
[425346600,1781706633000,-152.0,0.00025426,2]
[425346606,1781706633000,-4183.0044,0.00026634,2]
[425346602,1781706633000,-500.0,0.00025999,2]
[425346610,1781706633000,-150.0,0.00026679,7]
[425346611,1781706633000,-150.0,0.00026679,7]
[425346620,1781706633000,-166.0,0.00027117,3]
[425346609,1781706633000,-150.0,0.00026679,7]
[425346619,1781706633000,-205.4254035,0.00026998,7]
[425346596,1781706633000,-500.0,0.00024999,2]
[425346615,1781706633000,-150.0,0.00026679,7]
[425346613,1781706633000,-150.0,0.00026679,7]
[425346614,1781706633000,-150.0,0.00026679,7]
[425346616,1781706633000,-298.70862933,0.00026717,14]
[425346617,1781706633000,-81770.6857,0.00026734,2]
[425346621,1781706633000,-150.0,0.00027136,7]
[425346622,1781706633000,-150.0,0.00027174,7]
[425346627,1781706633000,-1500.0,0.00027397,2]
[425346626,1781706633000,-209.89907891,0.00027397,2]
[425346624,1781706633000,-200.0,0.00027252,2]
[425346625,1781706633000,-150.0,0.00027364,7]
[425346570,1781706633000,-155.0,0.00022,2]
[425346623,1781706633000,-174.77,0.00027245,2]
[425346612,1781706633000,-150.0,0.00026679,7]
[425346599,1781706633000,-215.0,0.00025,2]
[425346618,1781706633000,-150.0,0.00026907,7]
[425346608,1781706633000,-150.0,0.00026679,7]
[425346571,1781706633000,-200.0,0.00022,2]
[425346598,1781706633000,-338.90774176,0.00025,2]
[425346575,1781706633000,-336.0,0.00023,2]
[425346577,1781706633000,-172.67889335,0.00023,2]
[425346582,1781706633000,-12737.74,0.00023581,2]
[425346581,1781706633000,-166.66,0.00023518,30]
[425346576,1781706633000,-338.0,0.00023,2]
[425346579,1781706633000,-166.66,0.00023042,30]
[425346580,1781706633000,-200.0,0.00023461,2]
[425346578,1781706633000,-200.0,0.00023,2]
[425346583,1781706633000,-5000.0,0.00023709,2]
[425346584,1781706633000,-166.66,0.00023993,30]
[425346586,1781706633000,-338.0,0.00024,2]
[425346574,1781706633000,-166.66,0.00022567,30]
[425346587,1781706633000,-200.0,0.00024,2]
[425346585,1781706633000,-336.0,0.00024,2]
[425346607,1781706633000,-150.22442172,0.00026679,7]
[425346592,1781706633000,-1000.0,0.00024658,2]
[425346590,1781706633000,-166.66,0.00024468,30]
[425346595,1781706633000,-500.0,0.00024999,2]
[425346594,1781706633000,-200.0,0.00024978,2]
[425346597,1781706633000,-355.0,0.00025,2]
[425346591,1781706633000,-549.7024911,0.00024575,2]
[425346589,1781706633000,-200.0,0.0002422,2]
[425346588,1781706633000,-204.393133,0.00024,2]
[425346593,1781706633000,-166.66,0.00024943,30]
[425346661,1781706634000,-212.31581187,0.00028278,7]
[425346677,1781706634000,-151.0,0.00028478,2]
[425346658,1781706634000,-178.86501675,0.00028278,7]
[425346662,1781706634000,-1000.0,0.00028315,2]
[425346659,1781706634000,-202.19401123,0.00028278,7]
[425346664,1781706634000,-1000.0,0.00028315,2]
[425346660,1781706634000,-210.7756697,0.00028278,7]
[425346665,1781706634000,-1030.0,0.00028478,2]
[425346676,1781706634000,-578.20924308,0.00028478,2]
[425346666,1781706634000,-663.5190383,0.00028478,2]
[425346675,1781706634000,-500.0,0.00028478,2]
[425346668,1781706634000,-500.0,0.00028478,2]
[425346672,1781706634000,-500.0,0.00028478,2]
[425346667,1781706634000,-174.61919141,0.00028478,2]
[425346674,1781706634000,-500.0,0.00028478,2]
[425346673,1781706634000,-500.0,0.00028478,2]
[425346671,1781706634000,-156.80870372,0.00028478,2]
[425346670,1781706634000,-500.0,0.00028478,2]
[425346679,1781706634000,-646.65982734,0.00028478,2]
[425346680,1781706634000,-152.0,0.00028478,2]
[425346678,1781706634000,-500.0,0.00028478,2]
[425346682,1781706634000,-500.0,0.00028478,2]
[425346686,1781706634000,-500.0,0.00028478,2]
[425346687,1781706634000,-152.0,0.00028478,2]
[425346657,1781706634000,-205.82595271,0.00028278,7]
[425346669,1781706634000,-500.0,0.00028478,2]
[425346655,1781706634000,-206.83190526,0.00028278,2]
[425346631,1781706634000,-500.0,0.000275,7]
[425346654,1781706634000,-197.27483529,0.00028278,7]
[425346685,1781706634000,-500.0,0.00028478,2]
[425346630,1781706634000,-150.0,0.00027421,7]
[425346629,1781706634000,-153.88429515,0.00027397,7]
[425346628,1781706634000,-369.63649048,0.00027397,2]
[425346633,1781706634000,-150.0,0.00027668,7]
[425346643,1781706634000,-151.0,0.00028267,2]
[425346632,1781706634000,-150.0,0.00027592,7]
[425346635,1781706634000,-150.0,0.00027668,7]
[425346634,1781706634000,-150.0,0.00027668,7]
[425346636,1781706634000,-150.0,0.0002782,7]
[425346637,1781706634000,-200.0,0.0002801,2]
[425346638,1781706634000,-150.0,0.00028048,7]
[425346663,1781706634000,-1000.0,0.00028315,2]
[425346641,1781706634000,-404.1576,0.00028217,14]
[425346639,1781706634000,-150.0,0.00028162,30]
[425346642,1781706634000,-150.0,0.00028225,2]
[425346646,1781706634000,-150.0,0.00028276,30]
[425346644,1781706634000,-210.36571486,0.00028267,7]
[425346647,1781706634000,-211.94729016,0.00028278,7]
[425346648,1781706634000,-211.25901369,0.00028278,7]
[425346649,1781706634000,-211.8512918,0.00028278,7]
[425346652,1781706634000,-194.31905501,0.00028278,7]
[425346650,1781706634000,-307.7685903,0.00028278,7]
[425346653,1781706634000,-182.96454116,0.00028278,7]
[425346651,1781706634000,-201.52239641,0.00028278,7]
[425346656,1781706634000,-180.19449588,0.00028278,7]
[425346640,1781706634000,-150.0,0.00028162,30]
[425346683,1781706634000,-500.0,0.00028478,2]
[425346645,1781706634000,-201.22239202,0.00028267,7]
[425346681,1781706634000,-203.56087746,0.00028478,2]
[425346719,1781706634000,-150.0,0.00028656,30]
[425346721,1781706634000,-1000.0,0.00028658,2]
[425346720,1781706634000,-1000.0,0.00028658,2]
[425346722,1781706634000,-203.69,0.00028661,7]
[425346718,1781706634000,-150.0,0.00028656,30]
[425346717,1781706634000,-150.0,0.00028656,30]
[425346714,1781706634000,-156.53,0.0002863,30]
[425346723,1781706634000,-205.88,0.00028661,7]
[425346727,1781706634000,-203.69,0.00028725,2]
[425346730,1781706634000,-151.0,0.00028753,2]
[425346728,1781706634000,-205.88,0.00028725,2]
[425346729,1781706634000,-150.0,0.00028732,30]
[425346716,1781706634000,-151.0,0.00028643,2]
[425346733,1781706634000,-369.63649048,0.00028766,2]
[425346731,1781706634000,-203.69,0.00028756,7]
[425346732,1781706634000,-205.88,0.00028756,7]
[425346736,1781706634000,-176.0,0.00028787,2]
[425346737,1781706634000,-203.69,0.00028788,30]
[425346738,1781706634000,-205.88,0.00028788,30]
[425346739,1781706634000,-783.97,0.00028797,7]
[425346742,1781706634000,-1405.54,0.00028797,7]
[425346741,1781706634000,-801.66,0.00028797,7]
[425346740,1781706634000,-1414.78,0.00028797,7]
[425346744,1781706634000,-151.0,0.00028808,2]
[425346743,1781706634000,-1036.94,0.000288,30]
[425346684,1781706634000,-152.0,0.00028478,2]
[425346734,1781706634000,-200.0,0.00028769,2]
[425346726,1781706634000,-151.0,0.00028698,2]
[425346735,1781706634000,-1000.0,0.00028772,2]
[425346715,1781706634000,-156.80870379,0.00028643,2]
[425346725,1781706634000,-205.88,0.00028693,30]
[425346688,1781706634000,-500.0,0.00028478,2]
[425346701,1781706634000,-150.0,0.00028504,30]
[425346690,1781706634000,-500.0,0.00028478,2]
[425346700,1781706634000,-152.0,0.00028478,2]
[425346691,1781706634000,-151.0,0.00028478,2]
[425346693,1781706634000,-152.0,0.00028478,2]
[425346689,1781706634000,-151.0,0.00028478,2]
[425346696,1781706634000,-152.0,0.00028478,2]
[425346694,1781706634000,-152.0,0.00028478,2]
[425346697,1781706634000,-152.0,0.00028478,2]
[425346699,1781706634000,-152.0,0.00028478,2]
[425346695,1781706634000,-152.0,0.00028478,2]
[425346692,1781706634000,-152.0,0.00028478,2]
[425346702,1781706634000,-156.80870372,0.00028533,2]
[425346724,1781706634000,-203.69,0.00028693,30]
[425346711,1781706634000,-801.66,0.0002863,30]
[425346698,1781706634000,-152.0,0.00028478,2]
[425346709,1781706634000,-203.69,0.0002863,2]
[425346712,1781706634000,-1405.54,0.0002863,30]
[425346704,1781706634000,-1000.0,0.00028543,2]
[425346705,1781706634000,-156.80870372,0.00028588,2]
[425346713,1781706634000,-205.88,0.0002863,2]
[425346710,1781706634000,-156.67,0.0002863,30]
[425346703,1781706634000,-151.0,0.00028533,2]
[425346707,1781706634000,-783.97,0.0002863,30]
[425346706,1781706634000,-151.0,0.00028588,2]
[425346708,1781706634000,-1414.78,0.0002863,30]
[425346771,1781706635000,-156.0,0.00028954,30]
[425346774,1781706635000,-338.0,0.0002896,30]
[425346767,1781706635000,-150.0,0.00028903,30]
[425346770,1781706635000,-203.69,0.00028947,7]
[425346768,1781706635000,-203.69,0.00028915,2]
[425346769,1781706635000,-151.0,0.00028918,2]
[425346772,1781706635000,-152.0,0.00028954,30]
[425346776,1781706635000,-153.0,0.0002896,30]
[425346781,1781706635000,-153.0,0.0002896,30]
[425346777,1781706635000,-159.0,0.0002896,30]
[425346775,1781706635000,-153.0,0.0002896,30]
[425346783,1781706635000,-157.0,0.0002896,30]
[425346784,1781706635000,-150.0,0.0002896,30]
[425346779,1781706635000,-153.0,0.0002896,30]
[425346782,1781706635000,-200.0,0.0002896,30]
[425346765,1781706635000,-643.4871545,0.000289,2]
[425346780,1781706635000,-155.0,0.0002896,30]
[425346778,1781706635000,-156.0,0.0002896,30]
[425346766,1781706635000,-200.0,0.000289,2]
[425346754,1781706635000,-500.0,0.00028879,7]
[425346773,1781706635000,-151.0,0.00028954,30]
[425346786,1781706635000,-1414.78,0.00028964,2]
[425346745,1781706635000,-203.69,0.0002882,2]
[425346746,1781706635000,-156.67,0.00028845,7]
[425346747,1781706635000,-156.53,0.00028845,7]
[425346748,1781706635000,-203.69,0.00028852,7]
[425346750,1781706635000,-500.0,0.00028879,60]
[425346753,1781706635000,-500.0,0.00028879,7]
[425346752,1781706635000,-500.0,0.00028879,7]
[425346756,1781706635000,-203.69,0.00028883,30]
[425346757,1781706635000,-511.38015989,0.00028899,60]
[425346751,1781706635000,-500.0,0.00028879,60]
[425346759,1781706635000,-500.0,0.00028899,7]
[425346758,1781706635000,-500.0,0.00028899,7]
[425346755,1781706635000,-500.0,0.00028879,7]
[425346761,1781706635000,-500.0,0.00028899,2]
[425346763,1781706635000,-50000.0,0.000289,2]
[425346762,1781706635000,-10078.7539753,0.000289,2]
[425346764,1781706635000,-154.71437321,0.000289,2]
[425346785,1781706635000,-783.97,0.00028964,2]
[425346749,1781706635000,-151.0,0.00028863,2]
[425346788,1781706635000,-1405.54,0.00028964,2]
[425346810,1781706635000,-500.0,0.00028979,2]
[425346812,1781706635000,-500.0,0.00028979,2]
[425346815,1781706635000,-107694.41315205,0.0002898,7]
[425346818,1781706635000,-1586.26738872,0.0002898,7]
[425346814,1781706635000,-2429.63744751,0.0002898,7]
[425346817,1781706635000,-1196.53117368,0.0002898,7]
[425346813,1781706635000,-314814.41756856,0.0002898,7]
[425346820,1781706635000,-2726.52883703,0.0002898,7]
[425346819,1781706635000,-5066.79958262,0.0002898,7]
[425346826,1781706635000,-1915.2736008,0.0002898,7]
[425346823,1781706635000,-753.61719823,0.0002898,7]
[425346822,1781706635000,-3765.97484225,0.0002898,7]
[425346825,1781706635000,-2361.07756471,0.0002898,7]
[425346821,1781706635000,-6226.23626858,0.0002898,7]
[425346824,1781706635000,-330.20217475,0.0002898,7]
[425346827,1781706635000,-173799.96222578,0.0002898,7]
[425346828,1781706635000,-5223.64883449,0.0002898,7]
[425346811,1781706635000,-500.0,0.00028979,2]
[425346809,1781706635000,-500.0,0.00028979,2]
[425346790,1781706635000,-2048.366,0.00028969,2]
[425346806,1781706635000,-500.0,0.00028979,2]
[425346808,1781706635000,-500.0,0.00028979,2]
[425346787,1781706635000,-801.66,0.00028964,2]
[425346791,1781706635000,-221.85059141,0.0002897,2]
[425346789,1781706635000,-500.0,0.00028969,7]
[425346792,1781706635000,-221.85059141,0.0002897,2]
[425346793,1781706635000,-151.0,0.00028973,2]
[425346795,1781706635000,-4000.0,0.00028979,3]
[425346796,1781706635000,-500.0,0.00028979,2]
[425346797,1781706635000,-203.69,0.00028979,30]
[425346794,1781706635000,-380.59188256,0.00028978,7]
[425346799,1781706635000,-500.0,0.00028979,2]
[425346802,1781706635000,-500.0,0.00028979,2]
[425346801,1781706635000,-500.0,0.00028979,2]
[425346803,1781706635000,-500.0,0.00028979,2]
[425346800,1781706635000,-500.0,0.00028979,2]
[425346804,1781706635000,-500.0,0.00028979,2]
[425346805,1781706635000,-500.0,0.00028979,2]
[425346807,1781706635000,-500.0,0.00028979,2]
[425346798,1781706635000,-500.0,0.00028979,2]
[425346840,1781706640000,-1398.1,0.00028797,7]
[425346838,1781706640000,-806.25,0.0002863,30]
[425346837,1781706640000,-151.48828637,0.00014998,2]
[425346839,1781706640000,-1398.1,0.0002863,30]
[425346842,1781706640000,-205.88,0.0002882,2]
[425346841,1781706640000,-806.25,0.00028797,7]
[425346845,1781706640000,-205.88,0.00028883,30]
[425346843,1781706640000,-13.57060698,0.00028852,7]
[425346847,1781706640000,-205.88,0.00028947,7]
[425346844,1781706640000,-192.30939302,0.00028852,7]
[425346853,1781706640000,-70.15914265,0.00028979,30]
[425346849,1781706640000,-107.87060698,0.00028964,2]
[425346852,1781706640000,-135.72085735,0.00028979,30]
[425346851,1781706640000,-444.51703839,0.00028964,2]
[425346848,1781706640000,-1398.1,0.00028964,2]
[425346850,1781706640000,-253.86235463,0.00028964,2]
[425346846,1781706640000,-205.88,0.00028915,2]
[425346855,1781706641000,-734.07725081,0.0002898,7]
[425346854,1781706641000,-405.51070337,0.0002898,7]
[425346857,1781706642000,-1752202.17855437,0.0002898,7]
[425346868,1781706643000,-500.0,0.00027137,2]
[425346870,1781706643000,-1000.0,0.00028767,10]
[425346869,1781706643000,-1000.0,0.00028767,8]
[425346871,1781706643000,-1000.0,0.00028767,12]
[425346872,1781706643000,-1000.0,0.00028767,14]
[425346873,1781706643000,-1084.85816979,0.00028767,16]
[425346874,1781706643000,-200.37194734,0.000289,2]
[425346878,1781706643000,-928.48,0.0002898,7]
[425346880,1781706643000,-900.78221078,0.0002898,7]
[425346879,1781706643000,-509.36379677,0.0002898,7]
[425346875,1781706643000,-10908.48678887,0.0002898,7]
[425346883,1781706646000,-1500.0,0.00027397,2]
[425346885,1781706646000,-2315.92,0.00028487,2]
[425346884,1781706646000,-500.0,0.00028004,2]
[425346887,1781706646000,-2453.09697552,0.0002898,7]
[425346888,1781706646000,-2553.81556486,0.0002898,7]
[425346886,1781706646000,-446.0,0.0002863,2]
[425346943,1781706767000,199.25433119,0.00028899,120]
[425346950,1781706946000,1000.0,0.00030137,120]
[425346951,1781706967000,1000.0,0.00030137,120]
[425346958,1781707337000,240.53513388,0.00028979,120]
[425346957,1781707337000,500.0,0.00028979,120]
[425346956,1781707337000,500.0,0.00028899,120]
[425346960,1781707414000,236.75,0.00030023,120]
[425346961,1781707504000,500.0,0.00028899,120]
[425346962,1781707504000,563.38448355,0.00028979,120]
[425346963,1781707538000,152.0,0.00029242,120]
[425346964,1781707545000,500.0,0.00028973,120]
[425346965,1781707560000,500.0,0.00028973,120]
[425346972,1781707642000,-460.35213318,0.00014998,2]
[425346971,1781707642000,-6.23930415,0.00014998,2]
[425346969,1781707642000,-500.0,0.00014998,2]
[425346970,1781707642000,-493.76069585,0.00014998,2]
[425346968,1781707642000,-500.0,0.00014998,2]
[425346967,1781707642000,-500.0,0.00014998,2]
[425346974,1781707654000,-283.63020905,0.00014998,2]
[425346973,1781707654000,-39.64786682,0.00014998,2]
[425346975,1781707700000,197.38,0.00026287,120]
[425346976,1781707700000,197.38,0.00029208,120]
[425346980,1781707770000,-500.0,0.00014998,2]
[425346979,1781707770000,-216.36979095,0.00014998,2]
[425346981,1781707770000,-175.78213263,0.00014998,2]
[425346982,1781707770000,-151.0,0.00014998,2]
[425346984,1781707770000,-150.0,0.00014998,2]
[425346983,1781707770000,-151.0,0.00014998,2]
[425346986,1781707770000,-150.0,0.00014998,2]
[425346985,1781707770000,-151.0,0.00014998,2]
[425346987,1781707770000,-151.0,0.00014998,2]
[425346990,1781707770000,-150.0,0.00014999,2]
[425346989,1781707770000,-150.0,0.00014999,2]
[425346992,1781707770000,-151.0,0.00014999,2]
[425346988,1781707770000,-151.0,0.00014998,2]
[425346993,1781707770000,-151.0,0.00014999,2]
[425346991,1781707770000,-152.0,0.00014999,2]
[425347005,1781707770000,-280.73556645,0.00014999,2]
[425347003,1781707770000,-500.0,0.00014999,2]
[425347001,1781707770000,-375.89083565,0.00014999,2]
[425347002,1781707770000,-500.0,0.00014999,2]
[425347000,1781707770000,-620.32075581,0.00014999,2]
[425347004,1781707770000,-500.0,0.00014999,2]
[425346999,1781707770000,-500.0,0.00014999,2]
[425346997,1781707770000,-178.74530888,0.00014999,2]
[425346996,1781707770000,-151.0,0.00014999,2]
[425346994,1781707770000,-153.0,0.00014999,2]
[425346995,1781707770000,-153.0,0.00014999,2]
[425346998,1781707770000,-244.12148763,0.00014999,2]
[425347006,1781707781000,151.0,0.00014998,2]
[425347032,1781707832000,-151.0,0.00015,2]
[425347034,1781707832000,-310.0,0.00015,2]
[425347035,1781707832000,-153.0,0.00015,2]
[425347030,1781707832000,-309.0,0.00015,2]
[425347037,1781707832000,-311.0,0.00015,2]
[425347036,1781707832000,-312.0,0.00015,2]
[425347031,1781707832000,-320.0,0.00015,2]
[425347038,1781707832000,-317.0,0.00015,2]
[425347044,1781707832000,-310.0,0.00015,2]
[425347049,1781707832000,-151.0,0.00015,2]
[425347042,1781707832000,-153.0,0.00015,2]
[425347041,1781707832000,-320.0,0.00015,2]
[425347043,1781707832000,-317.0,0.00015,2]
[425347048,1781707832000,-309.0,0.00015,2]
[425347047,1781707832000,-319.0,0.00015,2]
[425347054,1781707832000,-320.28007858,0.00015,2]
[425347045,1781707832000,-316.0,0.00015,2]
[425347046,1781707832000,-152.0,0.00015,2]
[425347028,1781707832000,-150.0,0.00015,2]
[425347040,1781707832000,-315.0,0.00015,2]
[425347033,1781707832000,-319.0,0.00015,2]
[425347012,1781707832000,-150.0,0.00015,2]
[425347029,1781707832000,-318.0,0.00015,2]
[425347051,1781707832000,-317.0,0.00015,2]
[425347014,1781707832000,-151.0,0.00015,2]
[425347009,1781707832000,-152.0,0.00015,2]
[425347011,1781707832000,-151.0,0.00015,2]
[425347010,1781707832000,-150.0,0.00015,2]
[425347013,1781707832000,-151.0,0.00015,2]
[425347015,1781707832000,-151.0,0.00015,2]
[425347018,1781707832000,-150.0,0.00015,2]
[425347020,1781707832000,-310.0,0.00015,2]
[425347024,1781707832000,-311.0,0.00015,2]
[425347017,1781707832000,-315.0,0.00015,2]
[425347019,1781707832000,-316.0,0.00015,2]
[425347021,1781707832000,-152.0,0.00015,2]
[425347023,1781707832000,-320.0,0.00015,2]